bitfinex/quotes_SOLUSD_20251126
["timestamp","ask_amount","ask_price","bid_price","bid_amount"]
[1764153044866,0.67,137.17,137.16,3.81066601]
[1764153052704,3.22,137.18,137.16,4.50066601]
[1764153052889,3.89,137.18,137.16,3.81066601]
[1764153053202,0.67,137.17,137.16,3.81066601]
[1764153056803,3.89,137.18,137.16,11.10124212]
[1764153057099,0.67,137.17,137.16,11.10124212]
[1764153061208,0.67,137.17,137.16,3.81066601]
[1764153061388,8.80994492,137.16,137.15,0.1]
[1764153061594,16.47319106,137.16,137.15,0.1]
[1764153061785,5.58264094,137.16,137.15,0.1]
[1764153062103,5.58276144,137.16,137.15,0.1]
[1764153067485,0.67,137.16,137.15,0.1]
[1764153067686,5.5793477,137.16,137.15,0.1]
[1764153069104,8.7993477,137.16,137.15,0.1]
[1764153069305,18.17070822,137.16,137.15,0.1]
[1764153069811,16.09010302,137.16,137.15,0.1]
[1764153071788,0.68,137.15,137.14,0.0395]
[1764153079718,7.97128691,137.15,137.14,0.0395]
[1764153079901,12.87655056,137.15,137.14,0.0395]
[1764153091038,24.94086508,137.15,137.14,0.0395]
[1764153092327,31.0775497,137.15,137.14,0.0395]
[1764153092714,24.94086508,137.15,137.1,0.1]
[1764153092918,16.308864,137.11,137.1,0.1]
[1764153093119,24.43412765,137.11,137.1,0.1]
[1764153093321,25.12412765,137.11,137.1,0.1]
[1764153097321,41.22748661,137.11,137.1,0.1]
[1764153097546,44.48185621,137.11,137.1,0.1]
[1764153098046,37.18844217,137.11,137.1,0.1]
[1764153098425,44.48185621,137.11,137.1,0.1]
[1764153112662,50.61599781,137.11,137.1,0.1]
[1764153112866,56.74197996,137.11,137.1,0.1]
[1764153120265,8.80994492,137.1,137.09,0.1]
[1764153120468,23.80394257,137.1,137.09,0.1]
[1764153120847,23.80394257,137.1,137.09,1e-08]
[1764153121043,23.80394257,137.1,137.04,0.1]
[1764153121044,8.80994492,137.06,137.04,0.1]
[1764153121249,20.18957817,137.05,137.04,0.1]
[1764153121650,37.20844217,137.05,137.04,0.1]
[1764153121871,20.89957817,137.05,137.04,0.1]
[1764153122247,28.19618524,137.05,137.04,0.1]
[1764153122460,37.5758058,137.05,137.04,1e-08]
[1764153122661,8.80994492,137.04,137.02,0.1]
[1764153122853,8.80994492,137.02,137.01,0.1]
[1764153123155,12.06431452,137.01,136.99,0.1]
[1764153123359,16.93520857,137.0,136.99,0.1]
[1764153123560,20.85957817,137.0,136.99,0.1]
[1764153124270,28.15884824,137.0,136.99,0.1]
[1764153125068,28.15884824,137.0,136.96,0.1]
[1764153125069,25.11880892,136.97,136.96,0.1]
[1764153125372,36.49844217,136.97,136.96,0.1]
[1764153125580,37.16844217,136.97,136.96,0.1]
[1764153126282,44.46931097,136.97,136.96,0.1]
[1764153127759,47.72368057,136.97,136.96,0.1]
[1764153127960,53.85530455,136.97,136.96,0.1]
[1764153128275,44.46931097,136.97,136.96,0.1]
[1764153130570,43.79931097,136.97,136.96,0.1]
[1764153131374,43.79931097,136.97,136.96,0.81]
[1764153131375,15.28431452,136.97,136.96,0.81]
[1764153133383,31.59317852,136.97,136.96,0.81]
[1764153134259,38.89404732,136.97,136.96,0.81]
[1764153135485,31.59317852,136.97,136.96,0.81]
[1764153139477,28.33880892,136.97,136.96,0.81]
[1764153139879,31.59317852,136.97,136.96,0.81]
[1764153140792,19.528864,136.97,136.96,0.81]
[1764153141103,30.42734161,136.97,136.96,0.1]
[1764153141413,37.72821041,136.97,136.96,0.1]
[1764153142270,42.59432761,136.97,136.96,0.79]
[1764153142770,42.59432761,136.97,136.96,0.1]
[1764153144886,43.28432761,136.97,136.96,0.1]
[1764153146474,26.97546361,136.97,136.96,0.1]
[1764153146673,26.97546361,136.97,136.96,1e-08]
[1764153146893,26.97546361,136.97,136.9,0.69]
[1764153146894,25.11880892,136.93,136.9,0.69]
[1764153147077,2.08853269,136.91,136.88,0.69]
[1764153147276,16.308864,136.88,136.87,0.69]
[1764153147478,16.308864,136.87,136.85,22.65434454]
[1764153147789,21.61739669,136.86,136.84,3.82035946]
[1764153147989,21.61739669,136.86,136.82,23.61773697]
[1764153148188,21.61739669,136.86,136.83,0.69]
[1764153148402,19.528864,136.86,136.83,0.69]
[1764153148700,19.528864,136.86,136.83,7.99823041]
[1764153148902,2.08853269,136.84,136.82,4.51073097]
[1764153149084,3.22,136.83,136.79,25.58666568]
[1764153149274,3.22,136.83,136.82,3.82123042]
[1764153149601,3.22,136.83,136.8,2.77853269]
[1764153149803,3.22,136.83,136.82,3.82110654]
[1764153150300,3.22,136.83,136.82,4.51110654]
[1764153150797,3.22,136.83,136.82,11.81997951]
[1764153151183,3.22,136.89,136.82,32.91158191]
[1764153151389,3.22,136.89,136.84,2.08853269]
[1764153151902,3.22,136.89,136.85,2.77853269]
[1764153152395,3.22,136.89,136.86,7.99629671]
[1764153152903,3.22,136.89,136.87,0.69]
[1764153153274,3.22,136.89,136.84,18.26854225]
[1764153153474,8.08747857,136.89,136.85,0.69]
[1764153153688,3.22,136.89,136.85,0.69]
[1764153153884,3.22,136.89,136.85,2.77853269]
[1764153154388,3.22,136.89,136.87,7.30620296]
[1764153154788,3.22,136.89,136.88,0.69]
[1764153157584,3.22,136.89,136.86,7.99658513]
[1764153157780,3.22,136.89,136.87,0.69]
[1764153157988,13.30367151,136.89,136.84,7.30732472]
[1764153158188,5.30853269,136.89,136.86,0.69]
[1764153159387,5.30853269,136.89,136.86,7.99656397]
[1764153159778,3.22,136.89,136.87,0.69]
[1764153161299,4.88425929,136.88,136.87,0.69]
[1764153161603,4.88425929,136.88,136.87,7.99620296]
[1764153163503,3.22,136.89,136.87,7.99620296]
[1764153163705,3.22,136.89,136.88,0.69]
[1764153163906,8.11184693,136.89,136.88,0.69]
[1764153165512,8.11184693,136.89,136.88,7.99566919]
[1764153167987,8.11184693,136.89,136.87,24.3149428]
[1764153168292,4.89184693,136.88,136.87,7.3060788]
[1764153168503,4.89184693,136.88,136.87,8.0160788]
[1764153171319,3.22,136.89,136.87,8.0160788]
[1764153172722,4.90524632,136.88,136.87,8.0160788]
[1764153172908,3.22,136.89,136.87,8.0160788]
[1764153174210,3.22,136.89,136.87,0.71]
[1764153176602,3.22,136.89,136.87,8.01618237]
[1764153176999,3.22,136.89,136.87,7.30618237]
[1764153177200,3.22,136.89,136.87,0.71]
[1764153177400,3.22,136.89,136.86,25.57357124]
[1764153177599,3.22,136.89,136.87,0.71]
[1764153178427,3.22,136.89,136.88,7.30566919]
[1764153178621,19.528864,136.89,136.88,8.01566919]
[1764153179621,19.528864,136.89,136.88,7.30566919]
[1764153180224,3.22,136.89,136.88,8.01566919]
[1764153180604,3.22,136.89,136.88,10.10420188]
[1764153181529,3.22,136.89,136.88,8.01566919]
[1764153181743,3.22,136.89,136.88,0.71]
[1764153182333,3.22,136.89,136.88,8.01566919]
[1764153185315,3.22,136.89,136.88,10.10420188]
[1764153185527,0.72,136.95,136.88,64.89672086]
[1764153185741,103.4,136.97,136.92,2.08853269]
[1764153185742,4.91324353,136.94,136.92,2.08853269]
[1764153185946,3.22,136.94,136.92,2.08853269]
[1764153186113,3.22,136.94,136.93,0.67]
[1764153186317,8.13275482,136.94,136.93,0.67]
[1764153186928,8.13275482,136.94,136.93,7.97300153]
[1764153187132,6.08132252,136.98,136.93,10.06153422]
[1764153187331,7.29794307,137.03,136.93,10.06153422]
[1764153187332,4.91481542,136.97,136.96,2.08853269]
[1764153187534,3.22,136.97,136.94,0.67]
[1764153187722,3.22,136.97,136.96,2.08853269]
[1764153187916,3.22,136.97,136.95,2.08853269]
[1764153188537,3.22,136.97,136.96,2.75853269]
[1764153188923,3.22,136.97,136.96,10.05993455]
[1764153189936,3.22,137.0,136.96,64.82044856]
[1764153190130,3.22,137.0,136.99,2.08853269]
[1764153190332,3.22,137.0,136.99,2.75853269]
[1764153190908,3.22,137.0,136.99,10.05833559]
[1764153191915,3.22,137.0,136.98,7.30016006]
[1764153192115,3.22,137.0,136.96,7.30140186]
[1764153192116,0.72,136.99,136.96,7.30140186]
[1764153192330,6.02853269,137.0,136.96,7.30140186]
[1764153192532,3.94,137.0,136.96,7.97140186]
[1764153192741,3.22,137.0,136.97,0.67]
[1764153192929,3.22,137.0,136.98,7.30033581]
[1764153193718,3.22,137.0,136.97,7.30066167]
[1764153193918,8.11742485,137.0,136.97,7.30066167]
[1764153194142,8.81742485,137.0,136.97,7.30066167]
[1764153194327,8.11742485,137.0,136.97,8.01066167]
[1764153194533,3.92,137.0,136.97,8.01066167]
[1764153195230,3.92,137.0,136.96,8.01123933]
[1764153195834,0.7,136.99,136.96,7.30123933]
[1764153196036,5.59541408,136.99,136.96,8.01123933]
[1764153196232,0.7,136.99,136.96,8.01123933]
[1764153197450,8.11427051,137.0,136.97,0.71]
[1764153197632,8.81427051,137.0,136.98,7.30033581]
[1764153198031,0.7,136.99,136.97,7.30073824]
[1764153198739,8.81427051,137.0,136.97,7.30073824]
[1764153198940,0.7,136.99,136.97,7.30073824]
[1764153199248,8.11427051,137.0,136.97,7.30073824]
[1764153199449,8.81427051,137.0,136.97,7.30073824]
[1764153199634,8.11427051,137.0,136.97,7.30073824]
[1764153199946,0.7,136.99,136.97,7.30073824]
[1764153200939,2.78853269,136.99,136.96,7.30121905]
[1764153201245,0.7,136.99,136.96,8.01121905]
[1764153203135,0.7,136.99,136.96,26.26472372]
[1764153203523,3.22,137.0,136.97,0.71]
[1764153203842,0.7,136.99,136.96,26.26472372]
[1764153204657,3.22,137.0,136.97,0.71]
[1764153204861,3.92,137.0,136.97,0.71]
[1764153205154,3.92,137.0,136.98,7.30033581]
[1764153205325,0.7,136.99,136.98,7.30033581]
[1764153205939,3.22,137.0,136.98,7.30033581]
[1764153206129,3.92,137.0,136.98,7.30033581]
[1764153206329,3.92,137.0,136.97,7.3008688]
[1764153207641,3.92,137.0,136.97,0.71]
[1764153209261,3.92,137.0,136.98,7.30033581]
[1764153211235,3.92,137.0,136.97,7.3008688]
[1764153211435,3.92,137.0,136.97,8.0108688]
[1764153211960,3.22,137.0,136.98,0.71]
[1764153212659,3.22,137.0,136.98,3.97195125]
[1764153212855,3.22,137.0,136.99,3.26195125]
[1764153213155,3.22,137.0,136.99,3.97195125]
[1764153213355,3.22,137.02,137.0,25.54744525]
[1764153213572,3.22,137.02,137.0,29.5193965]
[1764153213758,3.22,137.02,137.01,0.71]
[1764153214057,3.22,137.02,137.01,3.97195125]
[1764153215953,3.22,137.02,137.01,11.27068856]
[1764153220860,3.92,137.02,137.0,7.29901727]
[1764153221061,0.7,137.01,136.99,7.2996378]
[1764153221253,3.96195125,137.01,136.99,7.2996378]
[1764153221772,0.7,137.0,136.99,7.2996378]
[1764153221945,0.7,137.0,136.98,7.30033581]
[1764153224371,12.07189617,136.99,136.93,7.30300153]
[1764153224662,3.26195125,136.95,136.9,0.67]
[1764153224861,3.93,136.94,136.9,0.67]
[1764153225062,0.71,136.93,136.9,0.67]
[1764153225366,3.93,136.94,136.9,0.67]
[1764153225861,3.93,136.94,136.91,25.56350955]
[1764153226065,3.22,136.94,136.91,28.8254608]
[1764153226264,3.22,136.94,136.92,3.93195125]
[1764153226646,3.22,136.94,136.93,0.67]
[1764153227159,3.22,136.94,136.91,3.93195125]
[1764153227365,3.22,136.94,136.9,7.30439326]
[1764153227366,3.22,136.94,136.92,0.67]
[1764153227872,3.22,136.94,136.93,7.30300153]
[1764153230868,3.22,136.94,136.93,7.97300153]
[1764153235874,3.22,136.94,136.93,7.30300153]
[1764153236171,3.93,136.94,136.92,7.30329259]
[1764153236384,3.93,136.94,136.91,25.56295844]
[1764153236546,3.93,136.94,136.91,26.23295844]
[1764153238753,3.22,136.94,136.92,0.67]
[1764153238958,3.22,136.94,136.91,25.56295844]
[1764153239176,3.22,136.94,136.91,26.23295844]
[1764153239778,3.93,136.94,136.91,26.23295844]
[1764153240072,3.22,136.94,136.91,26.23295844]
[1764153240272,3.22,136.94,136.91,25.56295844]
[1764153240462,3.22,136.94,136.92,3.93195125]
[1764153240863,3.22,136.94,136.93,0.67]
[1764153241969,3.22,136.94,136.93,7.97300153]
[1764153247678,3.22,136.94,136.92,26.24237218]
[1764153247869,3.22,136.94,136.93,3.26195125]
[1764153248059,3.22,136.94,136.93,3.94195125]
[1764153248676,3.22,136.94,136.93,0.68]
[1764153249876,3.22,136.94,136.93,7.98300153]
[1764153250660,3.22,136.94,136.93,7.30300153]
[1764153250861,3.22,136.94,136.93,7.98300153]
[1764153253162,0.72,136.96,136.93,7.98300153]
[1764153253163,3.22,136.97,136.93,29.50245661]
[1764153253368,3.22,136.97,136.94,0.68]
[1764153253578,3.94,136.97,136.94,0.68]
[1764153253777,3.94,136.97,136.95,25.55677254]
[1764153253959,3.22,136.97,136.95,25.55677254]
[1764153254165,3.22,136.97,136.95,26.27677254]
[1764153254888,3.22,136.97,136.95,26.10677254]
[1764153256290,3.22,136.97,136.95,25.38677254]
[1764153256492,3.94,136.97,136.95,25.38677254]
[1764153258099,3.22,136.97,136.95,26.10677254]
[1764153258393,3.22,136.97,136.95,25.38677254]
[1764153258776,3.22,136.97,136.95,26.10677254]
[1764153259765,0.72,136.96,136.94,7.30246823]
[1764153259966,3.26195125,136.95,136.9,40.50492365]
[1764153260198,3.26195125,136.95,136.91,25.56355179]
[1764153260491,3.98195125,136.94,136.91,7.30406836]
[1764153260696,7.20195125,136.93,136.91,7.30406836]
[1764153260877,3.22,136.93,136.91,8.02406836]
[1764153261073,3.22,136.93,136.91,11.28601961]
[1764153261578,3.22,136.93,136.91,10.56601961]
[1764153261781,3.22,136.93,136.92,11.28548616]
[1764153261974,3.22,136.96,136.92,29.54432343]
[1764153262180,3.22,136.96,136.93,3.98195125]
[1764153262381,3.22,136.96,136.94,3.26195125]
[1764153262582,3.22,136.96,136.94,3.98195125]
[1764153262779,3.22,136.96,136.95,0.72]
[1764153263189,3.22,136.96,136.94,3.26195125]
[1764153263375,3.22,136.96,136.94,3.98195125]
[1764153263578,3.22,136.96,136.95,7.30193501]
[1764153263984,3.22,136.96,136.95,10.56388626]
[1764153264186,3.22,136.96,136.95,11.28388626]
[1764153264673,3.22,136.96,136.95,9.38940225]
[1764153265389,3.22,136.96,136.95,7.30193501]
[1764153265974,3.22,136.99,136.95,28.36423978]
[1764153266192,3.22,136.99,136.96,2.80746724]
[1764153266386,3.22,136.99,136.98,2.08746724]
[1764153266689,3.22,136.99,136.97,0.72]
[1764153266891,3.22,136.99,136.98,2.08746724]
[1764153267107,3.22,136.99,136.98,9.38780305]
[1764153267292,3.22,136.99,136.98,10.10780305]
[1764153267674,3.94,136.99,136.98,7.30033581]
[1764153269685,3.94,136.99,136.97,7.3008688]
[1764153269883,3.22,136.99,136.97,7.3008688]
[1764153270580,3.22,136.99,136.97,10.10833604]
[1764153270886,3.22,136.99,136.97,9.38833604]
[1764153271094,3.94,136.99,136.97,7.3008688]
[1764153271476,3.22,136.99,136.97,7.3008688]
[1764153272185,3.22,136.99,136.97,9.38833604]
[1764153272377,3.22,136.99,136.97,10.10833604]
[1764153272896,3.22,136.99,136.98,2.80746724]
[1764153273081,0.72,137.03,136.98,2.80746724]
[1764153273281,3.22,137.02,136.99,0.72]
[1764153273485,3.22,137.02,136.97,64.14485205]
[1764153273790,3.22,137.02,136.99,2.08746724]
[1764153274187,3.22,137.02,136.99,2.80746724]
[1764153274490,3.22,137.02,137.01,2.08746724]
[1764153274691,3.22,137.02,137.01,2.80746724]
[1764153275286,3.22,137.02,137.0,2.08746724]
[1764153275887,3.94,137.02,137.01,7.29873731]
[1764153276508,3.22,137.02,137.01,7.29873731]
[1764153281303,3.94,137.02,137.0,7.29902666]
[1764153281509,3.94,137.02,136.99,10.51966507]
[1764153281510,0.72,137.01,136.99,10.51966507]
[1764153281810,0.72,137.01,136.98,7.30003404]
[1764153281811,2.08746724,137.0,136.98,7.30003404]
[1764153282308,0.72,136.99,136.98,7.30003404]
[1764153282511,0.72,136.99,136.97,18.2514236]
[1764153282685,3.22,136.98,136.97,18.2514236]
[1764153283097,3.94,136.98,136.97,18.2514236]
[1764153283629,3.94,136.98,136.97,25.5522924]
[1764153286390,3.22,136.98,136.97,25.5522924]
[1764153286891,3.88,136.98,136.97,25.5522924]
[1764153288318,3.22,136.98,136.97,27.63975964]
[1764153288499,3.88,136.98,136.97,25.5522924]
[1764153290295,3.88,136.98,136.97,18.2514236]
[1764153291822,5.96746724,136.98,136.95,7.30172353]
[1764153292003,0.66,136.97,136.95,7.30172353]
[1764153292596,0.66,136.97,136.93,25.55979745]
[1764153292811,0.66,136.97,136.93,28.32726469]
[1764153293125,0.66,136.97,136.94,2.76746724]
[1764153294210,0.66,136.97,136.95,7.30193501]
[1764153296221,0.66,136.97,136.94,25.55810401]
[1764153298203,0.66,136.97,136.94,18.25563578]
[1764153298920,10.04835861,136.97,136.93,7.30300153]
[1764153299132,2.08746724,136.96,136.93,7.30300153]
[1764153299303,2.74746724,136.96,136.93,7.30300153]
[1764153299502,0.66,136.95,136.93,7.30300153]
[1764153299802,3.22,136.94,136.93,7.30300153]
[1764153301119,3.22,136.94,136.93,10.07046877]
[1764153301512,3.22,136.97,136.93,28.3279726]
[1764153301710,0.66,137.01,136.96,2.08746724]
[1764153301913,8.12936684,137.0,136.98,2.08746724]
[1764153302211,3.22,137.0,136.97,2.08746724]
[1764153302412,8.12944649,137.0,136.98,7.30033581]
[1764153302609,3.22,137.0,136.98,7.30033581]
[1764153302809,3.9,137.0,136.98,7.30033581]
[1764153303006,0.68,136.99,136.98,7.30033581]
[1764153303403,3.9,137.0,136.98,7.30033581]
[1764153304323,3.9,137.0,136.96,2.77746724]
[1764153305231,3.9,137.0,136.97,2.08746724]
[1764153306302,3.9,137.0,136.96,2.77746724]
[1764153308003,0.68,136.99,136.95,2.77746724]
[1764153308432,0.68,136.99,136.96,0.69]
[1764153310023,0.68,136.99,136.96,2.77746724]
[1764153311616,0.68,136.99,136.96,0.69]
[1764153312009,0.68,136.99,136.96,2.77746724]
[1764153312828,0.68,136.99,136.96,0.69]
[1764153313541,0.68,136.99,136.95,2.77746724]
[1764153313745,2.76746724,136.99,136.93,2.08746724]
[1764153313906,0.68,136.98,136.93,2.77746724]
[1764153314630,2.76746724,136.98,136.92,2.08746724]
[1764153314822,2.08746724,136.97,136.91,6.61454621]
[1764153315011,3.22,136.96,136.91,6.61454621]
[1764153315333,3.94,136.96,136.92,2.08746724]
[1764153315640,0.72,136.95,136.92,2.79746724]
[1764153317740,0.72,136.95,136.91,3.81707897]
[1764153318343,2.80746724,136.95,136.92,7.30353491]
[1764153318718,0.72,136.94,136.92,7.30353491]
[1764153319148,2.80746724,136.94,136.9,3.8183075]
[1764153319334,0.72,136.93,136.9,11.83280023]
[1764153319530,3.22,136.92,136.9,11.83280023]
[1764153319717,3.22,136.92,136.9,11.12280023]
[1764153319918,3.22,136.92,136.9,13.92026747]
[1764153320540,3.22,136.92,136.9,11.83280023]
[1764153323344,3.22,136.92,136.9,13.92026747]
[1764153323545,3.22,136.92,136.9,11.83280023]
[1764153323843,3.94,136.92,136.9,11.12280023]
[1764153324152,0.72,136.91,136.9,11.12280023]
[1764153324445,0.72,136.91,136.89,7.30491818]
[1764153327243,3.22,136.92,136.9,0.71]
[1764153327548,3.94,136.92,136.89,3.97570853]
[1764153328038,3.22,136.92,136.88,25.56935382]
[1764153328240,0.72,136.91,136.88,28.83506235]
[1764153328921,0.72,136.91,136.88,25.56935382]
[1764153329428,0.72,136.91,136.88,7.30566919]
[1764153330045,0.72,136.91,136.88,25.56984218]
[1764153331551,0.72,136.91,136.88,26.27984218]
[1764153332231,0.72,136.91,136.88,25.56984218]
[1764153333447,0.72,136.91,136.87,11.12510489]
[1764153333673,0.72,136.91,136.81,0.1]
[1764153333674,3.26570853,136.88,136.81,0.1]
[1764153333964,22.79457253,136.87,136.82,3.82032351]
[1764153334128,3.98570853,136.86,136.82,11.12919648]
[1764153334337,0.72,136.85,136.82,11.12919648]
[1764153334567,3.22,136.84,136.82,11.12919648]
[1764153334941,3.94,136.84,136.82,11.12919648]
[1764153337244,0.72,136.83,136.82,11.12919648]
[1764153337435,0.72,136.83,136.82,7.30887297]
[1764153337752,3.22,136.84,136.82,7.30887297]
[1764153337940,3.94,136.84,136.82,7.30887297]
[1764153338428,0.72,136.83,136.81,7.40916429]
[1764153338625,3.94,136.84,136.81,0.81]
[1764153338943,3.22,136.84,136.81,4.07570853]
[1764153339259,3.94,136.84,136.81,4.07570853]
[1764153340640,3.94,136.84,136.82,7.30887297]
[1764153341255,3.22,136.84,136.82,7.30887297]
[1764153341858,3.94,136.88,136.83,3.97570853]
[1764153342057,3.94,136.88,136.84,3.26570853]
[1764153342264,3.94,136.88,136.84,3.97570853]
[1764153342436,3.94,136.88,136.85,0.71]
[1764153342861,3.94,136.88,136.86,7.30673681]
[1764153344746,3.22,136.88,136.86,7.30673681]
[1764153345952,3.22,136.88,136.86,8.02673681]
[1764153349554,3.22,136.88,136.86,7.30673681]
[1764153349754,3.22,136.88,136.87,0.72]
[1764153351154,3.22,136.88,136.87,23.61506696]
[1764153351657,3.22,136.88,136.87,8.02620296]
[1764153354353,3.22,136.88,136.87,7.30620296]
[1764153354559,3.91,136.88,136.87,7.30620296]
[1764153354968,3.22,136.88,136.87,7.30620296]
[1764153358264,3.91,136.88,136.87,7.30620296]
[1764153358849,3.22,136.88,136.87,7.30620296]
[1764153360769,3.91,136.92,136.87,30.49029818]
[1764153360959,3.22,136.92,136.89,4.19858781]
[1764153361162,3.22,136.92,136.91,4.19858781]
[1764153361474,0.69,136.95,136.91,4.19858781]
[1764153361646,0.69,136.95,136.91,13.72853273]
[1764153362184,0.69,136.95,136.92,25.56237218]
[1764153362368,0.69,136.95,136.92,26.28237218]
[1764153362556,3.22,136.96,136.93,4.86858781]
[1764153362950,3.22,136.96,136.94,0.67]
[1764153363145,3.22,136.96,136.94,4.86858781]
[1764153363652,3.22,136.96,136.94,0.67]
[1764153364158,3.22,136.96,136.95,7.30193501]
[1764153366951,3.22,136.96,136.94,7.30229282]
[1764153368772,0.66,136.95,136.94,7.30229282]
[1764153370655,0.66,136.95,136.92,25.56176112]
[1764153371758,3.22,136.96,136.92,25.56176112]
[1764153371957,3.22,136.96,136.93,0.67]
[1764153372177,3.22,136.96,136.93,21.01771263]
[1764153372664,3.22,136.96,136.94,0.67]
[1764153372869,3.22,136.96,136.95,7.30193501]
[1764153373664,3.88,136.96,136.95,7.30193501]
[1764153374755,4.03884863,136.99,136.95,7.30193501]
[1764153374756,8.80994492,137.01,136.95,0.67]
[1764153375072,0.67,136.99,136.95,4.70884863]
[1764153376277,0.67,136.99,136.97,25.5530408]
[1764153376866,0.67,136.99,136.97,7.3008688]
[1764153377195,0.44682189,136.99,136.97,7.3008688]
[1764153378162,0.44682189,136.99,136.96,25.55410554]
[1764153378362,0.44682189,136.99,136.96,26.22410554]
[1764153378662,0.44682189,136.99,136.96,25.55410554]
[1764153378851,0.44682189,136.99,136.96,7.30140186]
[1764153379670,0.44682189,136.99,136.96,25.55490653]
[1764153379980,3.22,137.0,136.97,4.70884863]
[1764153380181,3.89,137.0,136.97,4.70884863]
[1764153380480,3.89,137.0,136.98,7.30033581]
[1764153381891,3.22,137.0,136.98,12.00918444]
[1764153382258,3.22,137.0,136.99,12.00865153]
[1764153383161,3.22,137.02,137.0,4.03884863]
[1764153383366,3.22,137.02,137.01,0.67]
[1764153383570,0.67,137.05,137.01,4.70884863]
[1764153383777,3.22,137.06,137.02,4.03884863]
[1764153383970,3.22,137.06,137.02,4.70884863]
[1764153384177,3.89,137.06,137.03,4.70884863]
[1764153384364,3.89,137.06,137.04,7.29713952]
[1764153385384,3.89,137.06,137.02,4.03884863]
[1764153385385,0.67,137.05,137.02,7.29820464]
[1764153385770,0.67,137.05,137.02,25.54371624]
[1764153386474,0.67,137.05,137.02,18.9155116]
[1764153387170,3.22,137.06,137.03,0.67]
[1764153387967,0.67,137.05,137.02,18.2455116]
[1764153388168,0.67,137.05,137.02,18.9155116]
[1764153388391,0.67,137.05,137.02,26.21371624]
[1764153389982,0.67,137.05,137.02,25.54371624]
[1764153390177,3.25097742,137.05,137.02,7.29820464]
[1764153390677,2.58097742,137.03,137.0,7.29892543]
[1764153390995,2.58097742,137.01,136.99,7.29958834]
[1764153391374,0.67,137.0,136.99,7.29958834]
[1764153391975,0.67,137.0,136.98,18.25039796]
[1764153393074,0.67,137.0,136.97,7.3008688]
[1764153393767,0.67,137.0,136.97,25.5530408]
[1764153393967,3.25097742,137.0,136.97,25.5530408]
[1764153394504,0.67,136.99,136.97,25.5530408]
[1764153394805,3.22,136.98,136.97,25.5530408]
[1764153395108,3.22,136.98,136.97,7.3008688]
[1764153395278,3.89,136.98,136.97,7.3008688]
[1764153396087,3.89,136.98,136.95,25.55605853]
[1764153397901,0.67,136.97,136.95,25.55605853]
[1764153400205,3.22,136.98,136.95,25.55605853]
[1764153400399,3.89,136.98,136.95,26.22605853]
[1764153401090,3.22,136.98,136.96,0.67]
[1764153401805,3.22,136.98,136.97,7.3008688]
[1764153402388,3.89,136.98,136.97,7.3008688]
[1764153403091,3.22,136.98,136.96,7.30140186]
[1764153403283,3.89,136.98,136.96,7.30140186]
[1764153403625,3.22,136.98,136.96,7.97140186]
[1764153404111,3.91,136.98,136.96,7.30140186]
[1764153406103,3.91,136.98,136.96,25.55490653]
[1764153407234,0.69,136.97,136.96,7.30140186]
[1764153407784,0.69,136.97,136.94,25.558172]
[1764153407984,0.69,136.97,136.94,26.278172]
[1764153408810,3.27097742,136.97,136.94,25.558172]
[1764153409007,2.58097742,136.96,136.94,25.558172]
[1764153409309,3.22,136.95,136.94,7.30246823]
[1764153409625,3.91,136.95,136.94,7.30246823]
[1764153410213,3.91,136.95,136.92,18.25819383]
[1764153410397,0.69,136.94,136.92,25.56172874]
[1764153410795,3.22,136.95,136.93,0.72]